[Event "Slovakian-ch Youth 2022"]
[Site "Lubovna"]
[Date "2022.05.23"]
[Round "3.3"]
[White "Pongo, Aron"]
[Black "Magda, Filip"]
[Result "1/2-1/2"]
[ECO "A39"]
[WhiteElo "1566"]
[BlackElo "1624"]
[Annotator "NA RC COMBH"]
[PlyCount "110"]
[EventDate "2022.05.22"]
[EventCountry "SVK"]
[SourceTitle "playchess.com"]
[Source "ChessBase"]
[SourceQuality "1"]
[TimeControl "40/5400+30:1800+30"]

1. c4 {[%emt 0:00:02]} c5 {[%emt 0:00:38]} 2. Nf3 {[%emt 0:00:07]} Nc6 {[%emt 0:00:41]} 3. g3 {[%emt 0:00:17]} g6 {[%emt 0:01:02]} 4. Bg2 {[%emt 0:00:06]} Bg7 {[%emt 0:00:04]} 5. O-O {[%emt 0:00:17]} Nf6 {[%emt 0:00:24]} 6. Nc3 {[%emt 0:00:33]} O-O {[%emt 0:00:21]} 7. d4 {[%emt 0:01:06]} cxd4 {[%emt 0:07:22]} 8. Nxd4 {[%emt 0:00:17]} Nxd4 {[%emt 0:00:18]} 9. Qxd4 {[%emt 0:00:03]} d6 {[%emt 0:00:29]} 10. Qd2 {[%emt 0:00:39]} Rb8 {[%emt 0:00:44]} 11. b3 {[%emt 0:00:37]} b6 {[%emt 0:01:45]} 12. Bb2 {[%emt 0:00:09]} Bb7 {[%emt 0:00:33]} 13. Rac1 {[%emt 0:04:02]} Bxg2 {[%emt 0:00:33]} 14. Kxg2 {[%emt 0:00:03]} Rc8 {[%emt 0:01:20]} 15. Nd5 {[%emt 0:10:22]} Nxd5 {[%emt 0:03:20]} 16. Bxg7 {[%emt 0:02:57]} Kxg7 {[%emt 0:00:04]} 17. Qxd5 {[%emt 0:01:11]} e6 {[%emt 0:03:22]} 18. Qd4+ {[%emt 0:05:30]} e5 {[%emt 0:03:20]} 19. Qd5 {[%emt 0:01:12]} Qd7 {[%emt 0:01:42]} 20. Rcd1 {[%emt 0:01:05]} Qc6 {[%emt 0:02:01]} 21. Rd2 {[%emt 0:05:09]} Rfd8 {[%emt 0:04:01]} 22. Rfd1 {[%emt 0:01:14]} f5 {[%emt 0:00:57]} 23. Kg1 {[%emt 0:01:42]} Rc7 {[%emt 0:02:45]} 24. Qd3 {[%emt 0:07:09]} Rcd7 {[%emt 0:02:49]} 25. Qe3 {[%emt 0:01:43]} Kf6 {[%emt 0:05:20]} 26. Rd5 {[%emt 0:02:15]} Rb8 {[%emt 0:03:52]} 27. h4 {[%emt 0:02:56]} Ke6 {[%emt 0:08:42]} 28. Qh6 {[%emt 0:10:54]} Rg8 {[%emt 0:04:56]} 29. R1d3 {[%emt 0:01:18]} a6 {[%emt 0:05:24]} 30. Qg5 {[%emt 0:03:55]} Rgg7 {[%emt 0:03:06]} 31. Kh2 {[%emt 0:04:46]} b5 {[%emt 0:02:08]} 32. cxb5 {[%emt 0:02:35]} axb5 {[%emt 0:00:12]} 33. Qd2 {[%emt 0:03:52]} Rg8 {[%emt 0:02:49]} 34. Qb4 {[%emt 0:03:04]} Rb8 {[%emt 0:03:37]} 35. e4 {[%emt 0:06:24]} Rbb7 {[%emt 0:03:47]} 36. a4 {[%emt 0:10:36]} bxa4 {[%emt 0:03:20]} 37. Qxa4 {[%emt 0:00:28]} Qxa4 {[%emt 0:02:15]} 38. exf5+ {[%emt 0:00:10]} gxf5 {[%emt 0:00:35]} 39. bxa4 {[%emt 0:00:07]} Rbc7 {[%emt 0:02:41]} 40. a5 {[%emt 0:05:21]} Rc5 {[%emt 0:01:18]} 41. Rxc5 {[%emt 0:30:15]} dxc5 {[%emt 0:30:05]} 42. Ra3 {[%emt 0:00:21]} Ra7 {[%emt 0:00:15]} 43. Kg2 {[%emt 0:00:33]} Kd6 {[%emt 0:01:09]} 44. Kf1 {[%emt 0:04:27]} Kc6 {[%emt 0:00:33]} 45. Rf3 {[%emt 0:00:00]} Rf7 {[%emt 0:00:00]} 46. a6 {[%emt 0:00:00]} Kb6 {[%emt 0:00:00]} 47. Ra3 {[%emt 0:00:00]} e4 {[%emt 0:00:00]} 48. f3 {[%emt 0:00:00]} exf3 {[%emt 0:00:00]} 49. Kf2 {[%emt 0:00:00]} Ra7 {[%emt 0:00:00]} 50. Rxf3 {[%emt 0:00:00]} Kxa6 {[%emt 0:00:00]} 51. Rxf5 {[%emt 0:00:00]} Kb5 {[%emt 0:00:00]} 52. Ke1 {[%emt 0:00:00]} Rd7 {[%emt 0:00:00]} 53. Rf2 {[%emt 0:00:00]} Kc4 54. Rd2 Rxd2 55. Kxd2 Kb5 1/2-1/2

[Event "Slovakian-ch Youth 2022"]
[Site "Lubovna"]
[Date "2022.05.23"]
[Round "3.4"]
[White "Polomsky, Tomas"]
[Black "Gollner, Martin"]
[Result "1/2-1/2"]
[ECO "A43"]
[WhiteElo "1467"]
[BlackElo "1585"]
[Annotator "NA RC COMBH"]
[PlyCount "125"]
[EventDate "2022.05.22"]
[EventCountry "SVK"]
[SourceTitle "playchess.com"]
[Source "ChessBase"]
[SourceQuality "1"]
[TimeControl "40/5400+30:1800+30"]

1. d4 {[%emt 0:00:09]} c5 {[%emt 0:10:15]} 2. d5 {[%emt 0:00:22]} g6 {[%emt 0:00:07]} 3. c4 {[%emt 0:01:09]} Bg7 4. Nc3 {[%emt 0:03:08]} d6 {[%emt 0:00:58]} 5. Nf3 Nf6 {[%emt 0:00:50]} 6. e4 {[%emt 0:03:53]} O-O {[%emt 0:04:00]} 7. Bf4 {[%emt 0:05:28]} Bg4 {[%emt 0:00:22]} 8. Be2 {[%emt 0:01:10]} Bxf3 {[%emt 0:05:37]} 9. Bxf3 {[%emt 0:03:53]} Nbd7 {[%emt 0:03:04]} 10. O-O {[%emt 0:05:32]} Nb6 {[%emt 0:01:46]} 11. Qe2 {[%emt 0:05:18]} Nfd7 {[%emt 0:01:22]} 12. Rac1 {[%emt 0:02:02]} Ne5 {[%emt 0:06:47]} 13. b3 {[%emt 0:05:51]} Nbd7 14. Bg4 Nxg4 {[%emt 0:01:20]} 15. Qxg4 {[%emt 0:00:33]} Ne5 {[%emt 0:00:00]} 16. Bxe5 {[%emt 0:05:34]} Bxe5 {[%emt 0:01:51]} 17. Ne2 f5 {[%emt 0:00:11]} 18. exf5 {[%emt 0:03:11]} Rxf5 {[%emt 0:02:53]} 19. Ng3 {[%emt 0:02:40]} Rf4 {[%emt 0:00:42]} 20. Qe6+ {[%emt 0:06:57]} Kh8 {[%emt 0:01:21]} 21. Ne2 {[%emt 0:00:51]} Re4 {[%emt 0:00:59]} 22. Ng3 {[%emt 0:04:33]} Rh4 {[%emt 0:10:42]} 23. Rce1 Qf8 24. Re4 {[%emt 0:07:27]} Rxe4 {[%emt 0:04:28]} 25. Nxe4 {[%emt 0:01:44]} Qf4 {[%emt 0:00:15]} 26. Ng3 {[%emt 0:02:12]} Rf8 {[%emt 0:02:46]} 27. Qxe7 {[%emt 0:05:57]} Rf7 {[%emt 0:00:46]} 28. Qd8+ {[%emt 0:02:58]} Kg7 {[%emt 0:00:22]} 29. Qc8 h5 {[%emt 0:16:43]} 30. Qh3 {[%emt 0:04:50]} h4 {[%emt 0:00:16]} 31. Nh1 Bd4 {[%emt 0:09:42]} 32. g3 {[%emt 0:07:27]} hxg3 {[%emt 0:00:21]} 33. Qxg3 {[%emt 0:00:44]} Qxg3+ {[%emt 0:00:38]} 34. Nxg3 {[%emt 0:00:48]} Rf3 {[%emt 0:00:26]} 35. Kg2 {[%emt 0:01:27]} Rd3 {[%emt 0:00:27]} 36. Re1 {[%emt 0:00:40]} Be5 {[%emt 0:03:21]} 37. Re2 {[%emt 0:03:02]} a6 {[%emt 0:00:35]} 38. Ne4 b5 39. cxb5 {[%emt 0:02:09]} axb5 {[%emt 0:00:34]} 40. Nxc5 dxc5 {[%emt 0:00:16]} 41. Rxe5 {[%emt 0:30:35]} Kf6 {[%emt 0:30:18]} 42. Re6+ {[%emt 0:00:40]} Kf5 {[%emt 0:00:00]} 43. Rb6 {[%emt 0:00:30]} b4 {[%emt 0:00:00]} 44. d6 {[%emt 0:00:00]} Ke5 {[%emt 0:00:00]} 45. Rc6 Rd5 {[%emt 0:00:00]} 46. d7 {[%emt 0:00:00]} Kd4 47. Rxg6 {[%emt 0:00:00]} Rxd7 {[%emt 0:00:00]} 48. Rg4+ {[%emt 0:00:00]} Kc3 49. Re4 Rd2 {[%emt 0:05:48]} 50. Rc4+ {[%emt 0:00:00]} Kb2 51. Rxc5 {[%emt 0:00:00]} Kxa2 {[%emt 0:00:04]} 52. h4 {[%emt 0:00:00]} Kxb3 {[%emt 0:03:15]} 53. h5 {[%emt 0:00:00]} Ka4 54. Kg3 b3 {[%emt 0:03:42]} 55. Rc8 {[%emt 0:00:00]} Rd5 {[%emt 0:03:03]} 56. Ra8+ {[%emt 0:00:00]} Kb4 {[%emt 0:02:31]} 57. Rb8+ Rb5 58. Rxb5+ {[%emt 0:00:50]} Kxb5 {[%emt 0:00:31]} 59. h6 {[%emt 0:00:11]} b2 60. h7 {[%emt 0:00:09]} b1=Q {[%emt 0:00:09]} 61. h8=Q Qg1+ {[%emt 0:00:00]} 62. Kf3 {[%emt 0:01:03]} Qd1+ 63. Kg2 1/2-1/2

[Event "Slovakian-ch Youth 2022"]
[Site "Lubovna"]
[Date "2022.05.23"]
[Round "3.4"]
[White "Sotnik, Simon"]
[Black "Toth, Mihaly"]
[Result "1-0"]
[ECO "B27"]
[WhiteElo "1038"]
[BlackElo "1909"]
[Annotator "TA"]
[PlyCount "39"]
[EventDate "2022.05.22"]
[EventCountry "SVK"]
[SourceTitle "playchess.com"]
[Source "ChessBase"]
[SourceQuality "1"]
[TimeControl "40/5400+30:1800+30"]

{[%evp 9,39,4,34,4,232,246,259,259,269,240,232,254,263,256,256,255,251,245,406,406,2224,2260,2243,2211,2264,2261,2237,1986,2640,1756,1619,1480]} 1. e4 c5 2. Nf3 g6 3. Nc3 Bg7 4. Bc4 e6 5. d3 Nf6 6. Bg5 {[#] Black must now prevent e5. B27: Sicilian: 2 Nf3, unusual Black 2nd moves.} O-O $2 (6... h6 $11 {and Black is okay.} 7. Be3 d6) 7. e5 $18 {[#]} Nc6 $146 ({Predecessor:} 7... d5 8. exf6 Bxf6 9. Bb3 Bxg5 10. O-O d4 11. Ne4 Bf4 12. c3 dxc3 13. bxc3 b6 14. a4 Bb7 15. a5 Bxe4 16. dxe4 bxa5 {1-0 (16) Bazaras,J-Baumilas,J Plateliai 2018}) 8. exf6 {White has a decisive advantage.} Bxf6 9. Bxf6 Qxf6 10. O-O a6 11. Re1 d5 12. Bb3 b5 13. a3 d4 $2 (13... Rd8 14. Qd2 Bb7) 14. Ne4 {[%csl LRc5,LRf6]} e5 (14... Qe7 $142 15. Qd2 Ra7) 15. Nxf6+ {White is clearly winning.} Kg7 16. Nxe5 Nxe5 17. Rxe5 {[%cal Be1e5,Be5c5,Bc5d5][%mdl 32]} Kxf6 18. Rxc5 {[#] Intending Qe1 and mate.} Bb7 19. Bd5 Bxd5 20. Rxd5 {White took control after the opening.  Weighted Error Value: White=0.10 (very precise) /Black=0.79} 1-0

[Event "Slovakian-ch Youth 2022"]
[Site "Lubovna"]
[Date "2022.05.23"]
[Round "3.5"]
[White "Petrek, Dominik"]
[Black "Stevik, Patrik"]
[Result "0-1"]
[ECO "E73"]
[WhiteElo "2110"]
[BlackElo "2249"]
[Annotator "TA"]
[PlyCount "64"]
[EventDate "2022.05.22"]
[EventCountry "SVK"]
[SourceTitle "playchess.com"]
[Source "ChessBase"]
[SourceQuality "1"]
[TimeControl "40/5400+30:1800+30"]

{[%evp 10,64,37,36,60,12,50,11,26,3,52,45,46,15,18,13,45,37,33,18,40,23,54,23,61,31,95,0,0,0,0,0,0,0,0,-73,0,0,0,0,0,0,-37,-51,-53,-52,-8,-32,291,74,80,0,0,-795,-781,-773,-763]} 1. d4 {[%emt 0:00:20]} Nf6 {[%emt 0:00:35]} 2. c4 {[%emt 0:00:13]} g6 {[%emt 0:01:50]} 3. Nc3 {[%emt 0:00:15]} Bg7 {[%emt 0:00:02]} 4. e4 {[%emt 0:00:10]} d6 {[%emt 0:00:07]} 5. Be2 {[%emt 0:00:37]} O-O {[%emt 0:00:12]} 6. Be3 {[%emt 0:00:44]} a6 {[%emt 0:01:49][%cal Ob7b5] E73: King's Indian: Averbakh Variation without 6...c5.} 7. h4 {[%emt 0:01:58]} (7. Nf3 $14) 7... b5 {[%emt 0:01:34]} 8. cxb5 {[%emt 0:05:08]} axb5 {[%emt 0:01:05] The position is equal.} 9. Bxb5 {[%emt 0:02:06] [#]} Ba6 $146 {[%emt 0:04:51]} (9... Bb7 $11 {might be stronger.}) ({Predecessor:} 9... c6 10. Be2 Qa5 11. Qd2 e5 12. dxe5 dxe5 13. Rd1 Ng4 14. Bxg4 Bxg4 15. f3 Be6 {½-½ (38) Ergazakis,I (2255)-Mitzas,D (1376) Chania 2022}) 10. Bxa6 $14 {[%emt 0:04:41]} Nxa6 {[%emt 0:00:16]} 11. Nh3 {[%emt 0:08:28]} Qb8 {[%emt 0:05:10]} 12. Rb1 {[%emt 0:02:47]} Qb7 {[%emt 0:01:19]} 13. f3 {[%emt 0:02:14]} c5 {[%emt 0:08:16]} 14. O-O {[%emt 0:11:41]} Rfc8 {[%emt 0:05:29]} 15. d5 {[%emt 0:10:08]} Nd7 {[%emt 0:05:25]} 16. f4 {[%emt 0:08:37]} Qb4 {[%emt 0:05:49]} 17. Nf2 {[%emt 0:06:11]} (17. e5 $5) 17... Nb6 {[%emt 0:05:31]} ({Black should try} 17... Bxc3 $14 18. bxc3 Qxc3) 18. Nd3 {[%emt 0:07:43]} (18. a3 $16 Qa5 19. e5) 18... Qc4 $11 {[%emt 0:04:29]} 19. Nf2 {[%emt 0:03:52]} Bxc3 {[%emt 0:10:44]} 20. bxc3 {[%emt 0:00:41]} Na4 {[%emt 0:00:19]} 21. Qg4 {[%emt 0:04:31] Strongly threatening f5.} Nxc3 {[%emt 0:01:13] Pair of Knights!} 22. Rb7 {[%emt 0:01:46] [#]} (22. Rbe1 $11 {remains equal.}) 22... Ne2+ {[%emt 0:08:58]} (22... Nxe4 23. f5 Qxd5 24. Qxe4 Qxe4 25. Nxe4 $18) (22... Rc7 $1 $17 {[%cal Rc7b7]} 23. Rxc7 Nxc7) 23. Kh2 {[%emt 0:00:33]} Ng3 {[%emt 0:01:15]} 24. Qxg3 {[%emt 0:05:41]} Qxf1 {[%emt 0:00:10]} 25. f5 {[%emt 0:01:10]} Rc7 {[%emt 0:01:40]} 26. Rb2 {[%emt 0:03:47] Threatens to win with Ng4.} Qa1 $1 {[%emt 0:01:00]} 27. Re2 {[%emt 0:01:26]} Nb4 {[%emt 0:01:43] Hoping for ...Rca7.} 28. Ng4 {[%emt 0:00:51]} Kf8 $2 {[%emt 0:03:43][%mdl 8192]} (28... Nxa2 29. Rf2 Nc3 30. fxg6 fxg6 31. Qf3 $18) (28... Nd3 $15 {keeps the upper hand.} 29. h5 Rb7 30. fxg6 fxg6) 29. fxg6 $2 {[%emt 0:00:40]} (29. Bh6+ $18 Ke8 30. f6) 29... hxg6 $16 {[%emt 0:00:15] [#]} 30. Rf2 {[%emt 0:01:36]} ({Better is} 30. e5 $1 $16 {[%cal Re5d6]} dxe5 31. Rf2 Nxd5 32. Bh6+ (32. Qf3 e6 $18) 32... Ke8 33. Qf3) 30... Ke8 $1 $11 {[%emt 0:04:50] ...Nd3 is the strong threat.} 31. Nf6+ $2 {[%emt 0:01:03][%mdl 8192]} exf6 $19 {[%emt 0:00:59]} 32. Qxd6 {[%emt 0:00:40]} Qe5+ {[%emt 0:00:05] Weighted Error Value: White=0.61/Black=0.40} 0-1

[Event "Slovakian-ch Youth 2022"]
[Site "Lubovna"]
[Date "2022.05.23"]
[Round "3.5"]
[White "Elias, David"]
[Black "Smetana, Peter"]
[Result "1-0"]
[ECO "A57"]
[WhiteElo "1901"]
[BlackElo "1740"]
[Annotator "TA"]
[PlyCount "59"]
[EventDate "2022.05.22"]
[EventCountry "SVK"]
[SourceTitle "playchess.com"]
[Source "ChessBase"]
[SourceQuality "1"]
[TimeControl "40/5400+30:1800+30"]

{[%evp 17,58,-50,56,23,676,678,660,679,669,655,662,592,597,559,608,605,698,699,772,660,1016,946,1109,1092,1137,1096,1060,1091,1236,1164,29985,29986,29986,1235,1440,1408,5397,5397,2391,2194,29999,29999,29999]} 1. d4 {[%emt 0:00:05][%cal Bd2d4,Bd4d5][%mdl 32]} Nf6 {[%emt 0:00:54]} 2. c4 {[%emt 0:00:07]} c5 {[%emt 0:00:40]} 3. d5 {[%emt 0:00:56]} b5 {[%emt 0:01:10]} 4. cxb5 {[%emt 0:00:24]} a6 {[%emt 0:00:38][%cal Ba7a6,Ba6b5,Bb5b4][%mdl 32]} 5. Nc3 {[%emt 0:00:20]} axb5 {[%emt 0:03:30]} 6. e4 {[%emt 0:00:07]} b4 {[%emt 0:01:00]} 7. Nb5 {[%emt 0:00:09]} d6 {[%emt 0:01:09]} 8. Bf4 {[%emt 0:00:31]} Nbd7 {[%emt 0:02:48]} 9. Nf3 {[%emt 0:05:18]} Nh5 {[%emt 0:04:17]} (9... Nxe4 $15 10. Qe2 f5) 10. Bg5 {[%emt 0:00:33] [#] aiming for Nxd6+. A57: Benko/Volga Gambit.} h6 $2 {[%emt 0:00:42][%mdl 8192]} (10... Nhf6 $11) 11. Nxd6+ $1 $18 {[%emt 0:00:08]} exd6 {[%emt 0:00:46]} 12. Bxd8 {[%emt 0:00:03] White is clearly winning.} Kxd8 {[%emt 0:00:15]} 13. Bb5 {[%emt 0:00:42] [#]} Nhf6 $146 {[%emt 0:00:33]} ({Predecessor:} 13... Nb6 14. Ne5 dxe5 15. Qxh5 g6 16. Qxe5 Rg8 17. Qe8+ Kc7 18. Qxf7+ {1-0 (18) Heras Cuenca,M (1930)-Tevar Sanz,G (1750) Tres Cantos 2017}) 14. Bxd7 {[%emt 0:00:18]} Nxd7 {[%emt 0:00:29]} 15. O-O {[%emt 0:00:07][%cal Bh1f1,Bf1a1,Ba1a7][%mdl 32]} Be7 {[%emt 0:00:47]} 16. a3 {[%emt 0:00:39]} bxa3 {[%emt 0:02:25]} 17. Rxa3 {[%emt 0:00:12]} Rb8 {[%emt 0:00:26]} 18. Rb3 {[%emt 0:01:00] [#] Strongly threatening Rxb8.} Rxb3 {[%emt 0:00:54]} 19. Qxb3 {[%emt 0:00:07]} Bf6 {[%emt 0:00:29]} 20. Ra1 {[%emt 0:01:36]} Ke7 {[%emt 0:01:14]} 21. Ra7 {[%emt 0:01:18]} Re8 {[%emt 0:01:00]} 22. Qb6 {[%emt 0:01:19]} g5 {[%emt 0:00:45]} 23. e5 {[%emt 0:00:27]} dxe5 {[%emt 0:00:12]} 24. Qxc5+ {[%emt 0:01:47]} Kd8 {[%emt 0:00:07]} 25. Qc7+ {[%emt 0:02:02]} (25. Qc4 $142 Ke7 26. Qb4+ Kd8 27. d6 Re6 28. Ra8 Rxd6 29. Qxd6 g4 30. Qc6) 25... Ke7 {[%emt 0:00:12]} 26. Nxe5 {[%emt 0:02:21] Qc5+ would kill now.} Bxe5 {[%emt 0:00:37]} 27. Qxe5+ {[%emt 0:00:11]} Kd8 {[%emt 0:00:12]} 28. Qc3 {[%emt 0:00:43] Threatening mate with d6.} Nc5 {[%emt 0:01:02]} 29. Qf6+ {[%emt 0:00:15]} Re7 {[%emt 0:00:14]} 30. Qxe7# {[%emt 0:00:03] Black got outplayed after the opening.  Weighted Error Value: White=0.38/Black=1.65} 1-0

[Event "Slovakian-ch Youth 2022"]
[Site "Lubovna"]
[Date "2022.05.23"]
[Round "3.6"]
[White "Brnusak, Tomas"]
[Black "Vadila, Ondrej"]
[Result "1/2-1/2"]
[ECO "B40"]
[WhiteElo "2212"]
[BlackElo "2082"]
[Annotator "TA"]
[PlyCount "95"]
[EventDate "2022.05.22"]
[EventCountry "SVK"]
[SourceTitle "playchess.com"]
[Source "ChessBase"]
[SourceQuality "1"]
[TimeControl "40/5400+30:1800+30"]

{[%evp 12,95,31,29,28,0,31,25,32,27,37,32,22,6,60,50,75,6,45,0,65,0,10,10,85,93,92,87,89,82,125,133,135,114,126,108,95,71,113,56,45,66,153,60,145,67,146,-67,-22,-33,-29,-56,-19,-16,0,-124,-21,-146,-138,-193,-200,-244,-243,-359,-356,-480,-472,-461,-212,-448,-432,-348,-335,-475,-351,-778,-97,-100,-107,-112,-70,-70,-70,-149,0,-345]} 1. e4 {[%emt 0:00:04]} c5 {[%emt 0:01:48]} 2. Nf3 {[%emt 0:00:06]} e6 {[%emt 0:00:04]} 3. d4 {[%emt 0:00:05]} cxd4 {[%emt 0:00:07]} 4. Nxd4 {[%emt 0:00:06]} Nf6 {[%emt 0:00:06]} 5. Bd3 {[%emt 0:00:51]} d6 {[%emt 0:00:55]} 6. O-O {[%emt 0:02:05]} Be7 {[%emt 0:00:20]} 7. c4 {[%emt 0:00:13]} Nc6 {[%emt 0:00:35] B40: Sicilian: 2...e6, Unusual lines.} 8. Nc2 {[%emt 0:01:58]} O-O {[%emt 0:00:52]} 9. Nc3 {[%emt 0:00:04]} b6 {[%emt 0:00:59] [#] White has an edge.} 10. f4 $146 {[%emt 0:01:49]} ({Predecessor:} 10. b3 Bb7 11. Bb2 Rc8 12. Ne3 Qc7 13. Rc1 Qb8 14. f4 Rfd8 15. Ng4 Nb4 16. Bb1 {1-0 (28) Schmidt,H (2412)-Wobbe,S (2185) Bargteheide 2011}) 10... Bb7 {[%emt 0:02:24]} 11. Qe2 {[%emt 0:16:53]} Rc8 {[%emt 0:16:52]} 12. Be3 {[%emt 0:17:20]} Re8 {[%emt 0:13:39]} (12... Nd7 $11) 13. Rad1 $14 {[%emt 0:02:20]} Qc7 {[%emt 0:00:44]} 14. g4 {[%emt 0:05:33]} (14. b4 $16) 14... Nd7 $11 {[%emt 0:09:20]} 15. b4 {[%emt 0:13:43]} a6 {[%emt 0:12:03]} (15... Qd8 $11) 16. a3 {[%emt 0:01:45]} (16. g5 $14) 16... Bf6 {[%emt 0:04:57]} 17. Na4 {[%emt 0:04:06]} Ncb8 {[%emt 0:07:07]} (17... e5 $11) 18. g5 $16 {[%emt 0:04:16]} Be7 {[%emt 0:02:23][%cal Bf6e7,Be7f8,Bf8g7][%mdl 32]} 19. Nd4 {[%emt 0:02:46]} Nc6 {[%emt 0:04:03]} 20. Qf2 {[%emt 0:01:27]} Rb8 {[%emt 0:01:55]} 21. Ne2 {[%emt 0:03:27][%cal Ra4b6] 0x0.0008433ab1cedp-1022s more active pieces. The black rooks are badly placed.} Ba8 {[%emt 0:00:40]} 22. Qg3 {[%emt 0:04:09]} Bf8 {[%emt 0:02:14]} 23. Rf3 {[%emt 0:04:17]} g6 {[%emt 0:01:20]} 24. h4 {[%emt 0:00:04]} Bg7 {[%emt 0:01:31][%cal Od6d5]} 25. Rf2 {[%emt 0:00:40]} (25. Nac3 $16) 25... Ne7 $14 {[%emt 0:00:50]} 26. Nac3 {[%emt 0:02:35][%cal Oh4h5] Hoping for h5!} Qc6 {[%emt 0:00:50]} (26... f5 $14) 27. Kh2 {[%emt 0:00:01]} (27. Qh3 $16) 27... Qc7 {[%emt 0:09:11]} (27... f5 $14) 28. Rc1 {[%emt 0:01:47]} (28. h5 $1 $16) 28... Rbc8 {[%emt 0:00:39]} (28... f5 $14) 29. c5 $2 {[%emt 0:01:30]} (29. h5 $1 $16) 29... dxc5 {[%emt 0:00:30]} 30. Bxa6 {[%emt 0:00:01]} Rcd8 {[%emt 0:01:19]} 31. Nb5 {[%emt 0:03:52]} Qc6 {[%emt 0:01:01]} (31... Qb8 $5 {[%cal Ra8e4]} 32. Nbc3 Nc8 $11) 32. Nbc3 $1 {[%emt 0:00:33][%cal Oh4h5]} Qc7 {[%emt 0:00:32]} 33. Bd3 {[%emt 0:00:21] [#]} (33. Nb5 $11 Qb8 34. Nec3) 33... Bc6 {[%emt 0:00:40]} ({Black should play} 33... Ne5 $1 $17 {[%cal Re5d3][%mdl 512]} 34. Bb5 Nd3 35. Bxe8 Nxc1 36. Bxc1 Rxe8 37. bxc5 Qxc5) 34. Nb5 {[%emt 0:00:05]} (34. Rd1 $11 {keeps the balance.}) 34... Qb8 $17 {[%emt 0:00:36][%cal Od7e5] White must now prevent ...Ne5!} 35. bxc5 {[%emt 0:00:30]} (35. Rd1 $17) 35... bxc5 $19 {[%emt 0:00:48]} 36. a4 {[%emt 0:00:30] [#]} Ne5 $1 {[%emt 0:01:16]} 37. fxe5 {[%emt 0:02:07]} (37. Bc2 $142 Nd3 38. Nec3) 37... Rxd3 {[%emt 0:00:12]} 38. Rxc5 {[%emt 0:00:05]} Bxe4 {[%emt 0:01:18] ...Nf5 is the strong threat.} 39. Nd6 {[%emt 0:04:11]} Nf5 {[%emt 0:00:19]} (39... Nd5 $142 40. Rb5 {[#]} Qa8 $1 41. Nxe4 Rxe3) 40. Rxf5 $2 {[%emt 0:01:37]} (40. Qf4 Rxe3 41. Nxe4) 40... exf5 {[%emt 0:02:48]} (40... gxf5 $2 {loses.} 41. Nxe8 Qxe8 42. Nf4 $19) 41. Nxe8 {[%emt 0:08:21] Threatens to win with Nf6+.} Qxe8 {[%emt 0:06:29]} 42. a5 {[%emt 0:04:12]} (42. Kg1 $142) 42... Rd1 {[%emt 0:05:43][%csl Ge4][%cal Rd1h1]} 43. Qf4 $2 {[%emt 0:02:52]} (43. Qf2) 43... Rd5 $2 {[%emt 0:07:26]} (43... Bd5 $19 {has better winning chances.} 44. Qf2 Bxe5+ 45. Nf4 Qa4) 44. Rxd5 $17 {[%emt 0:01:50]} Bxd5 {[%emt 0:00:09] A strong pair of Bishops.} 45. Bd4 {[%emt 0:00:04]} Qb5 {[%emt 0:00:40]} 46. Qd2 {[%emt 0:01:41]} Qb1 {[%emt 0:00:23] ( -> ...Qh1+)} 47. Ng3 {[%emt 0:02:41] Inhibits Qh1+.} (47. Kg3 $15) 47... Qb5 {[%emt 0:03:23]} (47... Bf3 $17 {[%cal Of5f4] Strongly threatening ...f4!} 48. Kh3 Qb3) 48. Bc3 $2 {[%emt 0:01:32][%mdl 40960] Weighted Error Value: White=0.61/Black=0.53. An unexpected result.} (48. Ne2 $1 $11 {and White is okay.}) 1/2-1/2

[Event "Slovakian-ch Youth 2022"]
[Site "Lubovna"]
[Date "2022.05.23"]
[Round "3.6"]
[White "Hudak, Jan"]
[Black "Hasala, Richard"]
[Result "1/2-1/2"]
[ECO "B50"]
[WhiteElo "1688"]
[BlackElo "1318"]
[Annotator "NA RC COMBH"]
[PlyCount "80"]
[EventDate "2022.05.22"]
[EventCountry "SVK"]
[SourceTitle "playchess.com"]
[Source "ChessBase"]
[SourceQuality "1"]
[TimeControl "40/5400+30:1800+30"]

1. e4 {[%emt 0:00:02]} c5 {[%emt 0:00:04]} 2. Nf3 {[%emt 0:00:05]} d6 {[%emt 0:00:05]} 3. Nc3 {[%emt 0:00:13]} g6 {[%emt 0:01:08]} 4. Bb5+ {[%emt 0:00:54]} Bd7 {[%emt 0:00:23]} 5. Bxd7+ Qxd7 {[%emt 0:00:42]} 6. d4 {[%emt 0:02:04]} Bg7 {[%emt 0:03:03]} 7. Be3 {[%emt 0:00:45]} cxd4 {[%emt 0:00:55]} 8. Bxd4 {[%emt 0:00:23]} Bxd4 {[%emt 0:02:02]} 9. Qxd4 {[%emt 0:00:15]} f6 {[%emt 0:03:02]} 10. O-O-O {[%emt 0:03:00]} Nc6 {[%emt 0:03:43]} 11. Qd2 {[%emt 0:02:20]} Rc8 {[%emt 0:03:57]} 12. Rhe1 {[%emt 0:05:54]} Qg4 {[%emt 0:01:08]} 13. Rg1 {[%emt 0:16:01]} a6 {[%emt 0:06:32]} 14. Nd4 {[%emt 0:13:05]} Nxd4 {[%emt 0:01:27]} 15. Qxd4 {[%emt 0:00:08]} Qg5+ {[%emt 0:03:34]} 16. Kb1 {[%emt 0:00:18]} Qa5 {[%emt 0:01:12]} 17. Qa4+ {[%emt 0:08:30]} Qxa4 {[%emt 0:00:06]} 18. Nxa4 {[%emt 0:00:06]} Rc4 {[%emt 0:00:41]} 19. Nc3 {[%emt 0:00:05]} b5 {[%emt 0:03:16]} 20. f3 {[%emt 0:00:21]} Kf7 {[%emt 0:01:37]} 21. Nd5 {[%emt 0:01:31]} Nh6 {[%emt 0:03:42]} 22. Rd3 {[%emt 0:01:52]} e6 {[%emt 0:03:11]} 23. Nc3 {[%emt 0:07:34]} Ke7 {[%emt 0:00:49]} 24. Rgd1 {[%emt 0:00:26]} Nf7 {[%emt 0:00:18]} 25. b3 {[%emt 0:01:11]} Rc6 {[%emt 0:00:28]} 26. Ne2 {[%emt 0:06:25]} Rhc8 {[%emt 0:02:55]} 27. R3d2 {[%emt 0:00:10]} a5 {[%emt 0:03:23]} 28. f4 {[%emt 0:03:47]} a4 {[%emt 0:03:56]} 29. Kb2 {[%emt 0:01:41]} Ra6 {[%emt 0:01:41]} 30. Rd4 {[%emt 0:05:32]} axb3 {[%emt 0:01:00]} 31. cxb3 {[%emt 0:02:06]} g5 {[%emt 0:08:23]} 32. f5 {[%emt 0:00:27]} e5 {[%emt 0:01:50]} 33. Rd5 {[%emt 0:00:19]} Rb6 {[%emt 0:01:19]} 34. Nc3 {[%emt 0:01:41]} b4 {[%emt 0:00:19]} 35. Ne2 {[%emt 0:01:56]} Nd8 {[%emt 0:02:33]} 36. Rc1 {[%emt 0:03:22]} Rxc1 {[%emt 0:00:32]} 37. Nxc1 {[%emt 0:00:14]} Nb7 {[%emt 0:02:42]} 38. Nd3 {[%emt 0:00:28]} Kd7 {[%emt 0:01:00]} 39. a3 {[%emt 0:04:40]} bxa3+ {[%emt 0:00:15]} 40. Kxa3 {[%emt 0:00:06]} Ra6+ {[%emt 0:00:43]} 1/2-1/2